bitfinex/quotes_SOLUSD_20250717
["timestamp","ask_amount","ask_price","bid_price","bid_amount"]
[1752777390023,29.54,174.73,174.72,0.03]
[1752777392236,30.22,174.73,174.72,0.03]
[1752777392433,42.1924164,174.73,174.72,0.03]
[1752777393231,68.1924164,174.73,174.72,0.03]
[1752777396327,42.1924164,174.73,174.72,0.03]
[1752777397132,58.97710037,174.73,174.72,0.03]
[1752777400234,26.0,174.7,174.67,6.90406956]
[1752777400434,16.78468397,174.65,174.61,0.06]
[1752777400638,6.24930074,174.62,174.61,0.06]
[1752777400819,42.16060074,174.62,174.61,0.06]
[1752777401020,42.84060074,174.62,174.61,0.06]
[1752777402143,47.51417616,174.62,174.61,0.06]
[1752777402369,48.56732161,174.62,174.61,0.06]
[1752777403323,65.35200558,174.62,174.61,0.06]
[1752777405438,69.8851733,174.62,174.61,0.06]
[1752777405838,81.15486064,174.62,174.61,0.06]
[1752777406452,229.45486064,174.62,174.61,0.06]
[1752777407534,199.83486064,174.62,174.61,0.06]
[1752777407737,229.49486064,174.62,174.61,0.06]
[1752777408431,232.30626386,174.62,174.61,0.06]
[1752777410248,226.05696312,174.62,174.61,0.06]
[1752777410449,26.0,174.59,174.54,0.2]
[1752777410755,6.24930074,174.55,174.54,0.2]
[1752777411049,35.86930074,174.55,174.54,0.2]
[1752777411553,29.62,174.55,174.54,0.2]
[1752777411853,29.62,174.55,174.54,0.86]
[1752777412042,29.62,174.55,174.54,7.10930074]
[1752777412549,29.62,174.55,174.54,6.58910878]
[1752777412956,29.62,174.55,174.54,12.83840952]
[1752777413251,10.32990291,174.59,174.54,12.83840952]
[1752777413456,29.62,174.58,174.55,0.66]
[1752777413753,29.62,174.58,174.57,6.24930074]
[1752777414143,29.62,174.58,174.57,6.90930074]
[1752777414325,29.62,174.58,174.57,0.66]
[1752777414865,29.62,174.58,174.55,11.97820815]
[1752777415031,29.62,174.58,174.56,0.66]
[1752777415032,6.24930074,174.57,174.56,0.66]
[1752777415233,6.24930074,174.57,174.54,0.86]
[1752777415535,29.62,174.56,174.55,0.66]
[1752777418032,29.62,174.56,174.55,12.63831821]
[1752777418434,10.32990291,174.59,174.55,12.63831821]
[1752777418635,10.32990291,174.59,174.58,11.97733373]
[1752777418842,39.94990291,174.59,174.58,12.63733373]
[1752777419053,10.32990291,174.59,174.58,12.63733373]
[1752777422866,10.32990291,174.59,174.58,0.66]
[1752777424540,10.32990291,174.59,174.56,11.97787674]
[1752777424844,29.6,174.58,174.56,0.66]
[1752777425239,29.6,174.58,174.57,6.90930074]
[1752777425475,10.32990291,174.59,174.57,6.90930074]
[1752777425646,10.32990291,174.59,174.58,6.90930074]
[1752777426536,10.32990291,174.59,174.58,12.63733373]
[1752777431150,10.32990291,174.59,174.58,6.38803299]
[1752777431345,10.32990291,174.59,174.58,29.4220177]
[1752777431560,29.61,174.61,174.58,29.4220177]
[1752777431759,29.61,174.61,174.6,6.24930074]
[1752777431948,29.61,174.61,174.6,6.90930074]
[1752777432387,29.61,174.61,174.6,0.66]
[1752777432555,29.61,174.61,174.6,6.90930074]
[1752777433267,29.61,174.61,174.6,12.6366776]
[1752777434762,0.03,174.61,174.6,12.6366776]
[1752777435553,0.03,174.61,174.6,29.42136157]
[1752777435852,0.03,174.61,174.6,6.38737686]
[1752777436072,0.03,174.61,174.6,12.6366776]
[1752777438972,0.03,174.61,174.6,14.1949776]
[1752777439387,29.58,174.65,174.64,6.24930074]
[1752777439558,29.61,174.68,174.64,12.63536578]
[1752777439757,29.61,174.68,174.65,0.66]
[1752777440283,29.61,174.68,174.65,6.24930074]
[1752777441559,29.61,174.68,174.65,11.97481762]
[1752777442769,29.61,174.68,174.66,6.24930074]
[1752777443384,29.61,174.68,174.67,6.24930074]
[1752777444692,29.61,174.68,174.67,11.97438232]
[1752777445506,29.61,174.68,174.67,12.63438232]
[1752777445708,0.03,174.68,174.67,12.63438232]
[1752777446307,0.03,174.68,174.67,29.41906629]
[1752777446509,0.03,174.68,174.67,12.63438232]
[1752777454696,0.03,174.68,174.67,6.38508158]
[1752777454896,0.03,174.68,174.67,12.63438232]
[1752777456806,0.03,174.68,174.67,6.38508158]
[1752777457007,0.03,174.68,174.67,12.63438232]
[1752777459301,0.03,174.68,174.67,6.38508158]
[1752777459604,0.03,174.68,174.67,12.63438232]
[1752777462638,0.03,174.68,174.67,6.38508158]
[1752777462939,0.03,174.68,174.67,12.63438232]
[1752777465341,0.03,174.68,174.67,5.72508158]
[1752777465639,0.71,174.68,174.64,11.97536578]
[1752777466009,0.71,174.68,174.64,12.63536578]
[1752777466428,0.71,174.68,174.64,5.72606504]
[1752777466429,0.68,174.67,174.64,5.72606504]
[1752777466923,30.24,174.67,174.64,5.72606504]
[1752777467127,36.48930074,174.67,174.64,5.72606504]
[1752777467929,36.48930074,174.67,174.63,5.72639294]
[1752777468352,6.92930074,174.66,174.62,6.38663194]
[1752777468526,6.92930074,174.65,174.61,5.78699319]
[1752777468728,0.68,174.64,174.61,5.78699319]
[1752777470633,6.92930074,174.66,174.62,0.72]
[1752777470849,6.24930074,174.66,174.61,0.06]
[1752777471033,6.24930074,174.64,174.61,0.06]
[1752777471539,6.92930074,174.64,174.61,0.06]
[1752777471849,0.68,174.64,174.61,0.06]
[1752777472450,6.92930074,174.64,174.61,0.06]
[1752777473152,6.24930074,174.65,174.61,0.78]
[1752777473333,0.68,174.66,174.61,0.78]
[1752777473334,29.56,174.66,174.62,6.24930074]
[1752777473655,29.56,174.66,174.63,0.72]
[1752777474028,29.56,174.66,174.62,6.24930074]
[1752777474232,6.92930074,174.65,174.61,0.06]
[1752777474635,0.68,174.64,174.61,0.06]
[1752777475034,0.68,174.64,174.61,6.30930074]
[1752777475436,0.68,174.64,174.62,5.72672087]
[1752777476048,0.03,174.68,174.63,6.96930074]
[1752777476249,0.03,174.68,174.64,6.24930074]
[1752777476456,29.56,174.67,174.64,6.96930074]
[1752777476634,29.56,174.67,174.65,0.72]
[1752777477153,29.56,174.67,174.66,0.72]
[1752777477339,29.56,174.67,174.66,6.44540936]
[1752777477737,29.56,174.67,174.66,12.6947101]
[1752777479263,29.56,174.67,174.66,6.44540936]
[1752777479444,29.56,174.67,174.66,12.6947101]
[1752777479650,29.56,174.67,174.66,11.9747101]
[1752777479848,0.03,174.68,174.66,11.9747101]
[1752777481159,0.03,174.68,174.67,6.96930074]
[1752777481739,0.03,174.73,174.67,32.96930074]
[1752777481934,0.03,174.73,174.72,6.24930074]
[1752777482355,0.03,174.73,174.72,6.96930074]
[1752777483265,0.03,174.73,174.72,12.69274396]
[1752777483461,0.03,174.73,174.72,5.72344322]
[1752777483762,0.03,174.73,174.72,11.97274396]
[1752777483938,0.03,174.73,174.72,12.69274396]
[1752777484738,0.03,174.73,174.72,11.97274396]
[1752777484938,0.03,174.73,174.72,12.69274396]
[1752777485857,0.03,174.73,174.72,11.97274396]
[1752777486862,0.03,174.73,174.72,12.69274396]
[1752777491545,0.03,174.75,174.74,26.0]
[1752777491767,0.03,174.75,174.74,32.24930074]
[1752777492154,0.03,174.75,174.74,32.96930074]
[1752777492555,0.03,174.75,174.74,38.69208888]
[1752777495066,0.03,174.75,174.74,32.44278814]
[1752777495274,0.03,174.75,174.74,37.97208888]
[1752777497974,0.71,174.75,174.71,32.24930074]
[1752777498472,0.71,174.75,174.72,5.72344322]
[1752777498678,0.68,174.74,174.72,5.72344322]
[1752777500266,0.03,174.75,174.72,5.72344322]
[1752777500570,0.71,174.75,174.72,5.72344322]
[1752777501578,0.03,174.75,174.72,5.72344322]
[1752777502381,0.03,174.75,174.72,6.42344322]
[1752777502881,0.03,174.75,174.72,12.67274396]
[1752777503085,0.03,174.75,174.73,0.7]
[1752777503456,0.03,174.75,174.73,6.94930074]
[1752777504065,0.03,174.75,174.72,5.72344322]
[1752777504383,0.71,174.75,174.72,5.72344322]
[1752777504884,0.03,174.75,174.72,11.97274396]
[1752777505052,0.03,174.75,174.72,12.67274396]
[1752777505251,0.03,174.75,174.72,6.42344322]
[1752777505658,0.03,174.75,174.72,12.67274396]
[1752777505957,0.03,174.75,174.73,0.7]
[1752777507182,0.03,174.75,174.74,11.97208888]
[1752777507381,0.03,174.75,174.74,5.72278814]
[1752777508963,0.03,174.75,174.74,6.42278814]
[1752777509489,0.03,174.75,174.74,12.67208888]
[1752777510183,0.03,174.75,174.74,5.72278814]
[1752777510363,0.03,174.75,174.74,11.97208888]
[1752777510566,0.03,174.75,174.74,12.67208888]
[1752777521861,1e-08,174.75,174.74,29.45677285]
[1752777527793,1e-08,174.79,174.77,26.0]
[1752777527996,1e-08,174.79,174.78,32.24930074]
[1752777528505,1e-08,174.79,174.78,32.82144858]
[1752777528685,1e-08,174.79,174.78,33.53144858]
[1752777529377,1e-08,174.79,174.78,38.68077917]
[1752777529568,1e-08,174.79,174.78,32.43147843]
[1752777529770,1e-08,174.79,174.78,38.68077917]
[1752777533093,1e-08,174.79,174.78,55.46546314]
[1752777541190,1e-08,174.79,174.78,31.72147843]
[1752777541403,1e-08,174.79,174.78,5.72147843]
[1752777541404,0.68000001,174.79,174.78,5.72147843]
[1752777542006,0.68000001,174.79,174.75,11.97176139]
[1752777543118,0.68,174.78,174.75,11.97176139]
[1752777543417,1e-08,174.79,174.77,6.24930074]
[1752777543719,1e-08,174.79,174.76,0.71]
[1752777543890,1e-08,174.79,174.78,6.24930074]
[1752777544085,1e-08,174.79,174.76,0.71]
[1752777544297,1e-08,174.79,174.78,6.24930074]
[1752777544699,1e-08,174.79,174.78,11.97077917]
[1752777545502,1e-08,174.79,174.78,12.68077917]
[1752777546597,1e-08,174.79,174.78,11.97077917]
[1752777547620,1e-08,174.79,174.78,12.68077917]
[1752777548312,1e-08,174.79,174.78,6.43147843]
[1752777548614,1e-08,174.79,174.78,12.68077917]
[1752777548795,1e-08,174.79,174.78,11.97077917]
[1752777555010,1e-08,174.79,174.78,12.68077917]
[1752777555715,1e-08,174.79,174.78,11.97077917]
[1752777556517,1e-08,174.79,174.78,12.00077917]
[1752777556713,1e-08,174.79,174.78,12.71077917]
[1752777558227,1e-08,174.79,174.78,6.46147843]
[1752777558413,1e-08,174.79,174.78,12.71077917]
[1752777561129,1e-08,174.79,174.78,12.00077917]
[1752777564544,0.68000001,174.79,174.78,12.00077917]
[1752777564716,0.68000001,174.79,174.78,5.75147843]
[1752777565550,0.68000001,174.79,174.78,0.03]
[1752777565918,4.6788107,174.79,174.78,0.03]
[1752777566432,0.68000001,174.79,174.78,0.03]
[1752777568339,6.92958804,174.79,174.78,0.03]
[1752777569022,15.02848804,174.79,174.78,0.03]
[1752777569342,20.74963913,174.79,174.78,0.03]
[1752777569520,46.74963913,174.79,174.78,0.03]
[1752777569721,6.4408,174.78,174.74,0.06]
[1752777569922,29.46,174.77,174.74,0.06]
[1752777570128,6.24958803,174.75,174.74,0.06]
[1752777570530,8.51288803,174.75,174.74,0.06]
[1752777570736,14.88578803,174.75,174.74,0.06]
[1752777571122,20.60824868,174.75,174.74,0.06]
[1752777571640,16.78468397,174.74,174.73,0.06]
[1752777571946,32.24958803,174.72,174.71,0.03]
[1752777572527,38.65303125,174.72,174.71,0.03]
[1752777572955,30.14,174.72,174.71,0.03]
[1752777573256,36.38958803,174.72,174.71,0.03]
[1752777574752,30.14,174.72,174.71,0.03]
[1752777575110,29.48,174.72,174.71,0.03]
[1752777575223,30.16,174.72,174.71,0.03]
[1752777578057,29.48,174.72,174.71,0.03]
[1752777578880,30.16,174.72,174.71,0.03]
[1752777579675,36.40958803,174.72,174.71,0.03]
[1752777580564,30.16,174.72,174.71,0.03]
[1752777584672,36.40958803,174.72,174.71,0.03]
[1752777586372,30.14,174.72,174.71,0.03]
[1752777586773,36.38958803,174.72,174.71,0.03]
[1752777587777,42.11303125,174.72,174.71,0.03]
[1752777589672,35.86344322,174.72,174.71,0.03]
[1752777589874,42.11303125,174.72,174.71,0.03]
[1752777593068,29.43771522,174.72,174.71,0.03]
[1752777593275,58.89771522,174.72,174.71,0.03]
[1752777594573,6.92958803,174.72,174.71,0.03]
[1752777594777,42.11303125,174.72,174.71,0.03]
[1752777594987,58.89771522,174.72,174.71,0.03]
[1752777599687,65.14730325,174.72,174.71,0.03]
[1752777600579,58.89771522,174.72,174.71,0.03]
[1752777601605,96.6259113,174.72,174.67,0.06]
[1752777601780,23.034272,174.68,174.67,0.06]
[1752777602101,52.494272,174.68,174.67,0.06]
[1752777602294,53.174272,174.68,174.67,0.06]
[1752777602501,57.77846628,174.68,174.67,0.06]
[1752777603088,60.57169051,174.68,174.67,0.06]
[1752777603286,62.09689051,174.68,174.67,0.06]
[1752777603598,23.034272,174.67,174.66,0.06]
[1752777603901,32.5921,174.65,174.64,0.06]
[1752777604105,68.30168803,174.65,174.64,0.06]
[1752777604598,68.98168803,174.65,174.64,0.06]
[1752777605802,91.49210918,174.65,174.64,0.06]
[1752777610302,105.80645215,174.65,174.61,0.06]
[1752777610494,49.034272,174.62,174.61,0.06]
[1752777610799,78.494272,174.62,174.61,0.06]
[1752777611003,79.174272,174.62,174.61,0.06]
[1752777611889,84.90099287,174.62,174.61,0.06]
[1752777612500,91.1505809,174.62,174.61,0.06]
[1752777612705,92.6764809,174.62,174.61,0.06]
[1752777612891,16.78468397,174.61,174.6,0.06]
[1752777613103,29.96386003,174.61,174.6,0.06]
[1752777614207,29.44132085,174.61,174.6,0.06]
[1752777614717,23.19173282,174.61,174.6,0.06]
[1752777615008,29.44132085,174.61,174.6,0.06]
[1752777615899,35.69090888,174.61,174.6,0.06]
[1752777616322,23.034272,174.57,174.56,0.2]
[1752777616493,52.514272,174.57,174.56,0.2]
[1752777616804,53.194272,174.57,174.56,0.2]
[1752777618106,58.92263311,174.57,174.56,0.2]
[1752777620502,29.44263311,174.57,174.56,0.2]
[1752777620697,58.92263311,174.57,174.56,0.2]
[1752777622033,29.44263311,174.57,174.56,0.2]
[1752777622323,58.92263311,174.57,174.56,0.2]
[1752777623199,58.24263311,174.57,174.56,0.2]
[1752777624318,58.92263311,174.57,174.56,0.2]
[1752777625612,58.24263311,174.57,174.56,0.2]
[1752777626002,28.76263311,174.57,174.56,0.2]
[1752777626319,58.24263311,174.57,174.56,0.2]
[1752777627320,46.26468397,174.57,174.56,0.2]
[1752777627510,35.72958803,174.57,174.56,0.88]
[1752777629814,29.48,174.57,174.56,0.88]
[1752777630007,6.24958803,174.57,174.56,0.88]
[1752777630209,35.72958803,174.57,174.56,0.88]
[1752777631203,35.72958803,174.57,174.56,0.2]
[1752777631517,58.92263311,174.57,174.56,0.2]
[1752777633015,58.24263311,174.57,174.56,0.2]
[1752777633618,28.76263311,174.57,174.56,0.88]
[1752777633917,58.24263311,174.57,174.56,0.88]
[1752777634122,58.24263311,174.57,174.56,0.2]
[1752777634302,5.72795477,174.59,174.56,0.2]
[1752777634504,32.24958803,174.57,174.56,0.88]
[1752777635426,6.24958803,174.58,174.56,0.88]
[1752777635619,0.03,174.6,174.57,0.68]
[1752777635808,6.24958803,174.58,174.56,0.2]
[1752777636009,5.75742002,174.6,174.57,0.68]
[1752777636209,29.48,174.59,174.56,0.2]
[1752777636418,29.48,174.59,174.57,0.68]
[1752777636623,29.48,174.59,174.58,0.68]
[1752777637529,35.72958803,174.59,174.56,0.88]
[1752777637706,35.72958803,174.59,174.57,0.68]
[1752777638125,6.24958803,174.58,174.56,0.2]
[1752777638430,35.72958803,174.57,174.56,0.2]
[1752777638726,35.72958803,174.57,174.56,0.88]
[1752777638908,35.72958803,174.57,174.56,0.2]
[1752777639312,35.72958803,174.57,174.56,0.88]
[1752777639511,53.194272,174.57,174.56,0.2]
[1752777639711,58.92263311,174.57,174.56,0.2]
[1752777641122,165.08468397,174.56,174.55,0.2]
[1752777641324,23.034272,174.55,174.53,0.2]
[1752777641519,35.72958803,174.54,174.53,0.2]
[1752777641719,48.51534299,174.5,174.44,0.68]
[1752777642021,48.51534299,174.5,174.43,0.2]
[1752777642022,90.49451905,174.5,174.43,0.2]
[1752777642225,90.49451905,174.5,174.45,0.68]
[1752777642520,90.49451905,174.5,174.46,0.68]
[1752777642725,84.24493102,174.5,174.47,0.68]
[1752777643319,54.76493102,174.5,174.43,0.2]
[1752777643525,37.98024705,174.5,174.48,0.68]
[1752777643825,61.72958803,174.5,174.49,0.88]
[1752777644017,22.51402967,174.54,174.49,0.88]
[1752777644332,6.24958803,174.51,174.5,0.68]
[1752777644512,35.72958803,174.51,174.49,0.2]
[1752777645137,35.72958803,174.51,174.5,0.68]
[1752777645835,29.48,174.51,174.5,0.68]
[1752777646024,29.48,174.51,174.5,6.41065902]
[1752777647835,29.48,174.51,174.5,0.68]
[1752777648429,35.72958803,174.51,174.5,0.68]
[1752777651819,35.72958803,174.51,174.5,0.7]
[1752777652025,29.48,174.51,174.5,0.7]
[1752777653128,29.48,174.51,174.5,6.43065902]
[1752777653717,29.48,174.51,174.5,12.68024705]
[1752777653930,29.48,174.51,174.5,6.43065902]
[1752777655146,7.95802574,174.55,174.5,12.68024705]
[1752777655316,29.48,174.54,174.52,6.24958803]
[1752777655516,29.48,174.54,174.53,6.94958803]
[1752777656848,29.48,174.54,174.53,6.42967398]
[1752777657140,29.48,174.54,174.53,12.67926201]
[1752777660050,29.48,174.54,174.53,0.7]
[1752777662228,29.48,174.54,174.53,12.67926201]
[1752777662630,29.48,174.54,174.53,6.94958803]
[1752777662929,29.48,174.54,174.53,0.7]
[1752777663244,29.48,174.54,174.53,6.42967398]
[1752777663857,29.48,174.54,174.49,14.52724666]
[1752777664160,29.48,174.54,174.51,6.24958803]
[1752777664332,29.48,174.54,174.53,6.24958803]
[1752777664648,29.51,174.54,174.53,6.94958803]
[1752777665428,29.51,174.54,174.53,0.7]
[1752777667032,29.51,174.54,174.53,6.94958803]
[1752777667836,29.51,174.54,174.53,0.7]
[1752777668745,29.51,174.54,174.53,6.42967398]
[1752777668959,29.51,174.54,174.53,12.67926201]
[1752777670762,29.51,174.54,174.53,6.42967398]
[1752777670955,29.51,174.54,174.53,12.67926201]
[1752777671161,29.51,174.54,174.53,6.42967398]
[1752777671351,29.51,174.54,174.53,12.67926201]
[1752777672056,29.51,174.54,174.53,6.42967398]
[1752777672370,29.51,174.54,174.53,12.67926201]
[1752777673265,29.51,174.54,174.53,6.42967398]
[1752777673561,29.51,174.54,174.53,12.67926201]
[1752777675563,0.03,174.54,174.53,12.67926201]
[1752777676844,0.03,174.54,174.53,6.42967398]
[1752777677063,0.03,174.54,174.53,12.67926201]
[1752777678455,0.03,174.6,174.54,16.78468397]
[1752777678668,29.49,174.6,174.59,6.24958803]
[1752777678875,29.49,174.6,174.59,6.92958803]
[1752777679464,29.49,174.6,174.58,6.24958803]
[1752777679986,29.49,174.6,174.59,0.68]
[1752777680576,29.49,174.6,174.58,6.24958803]
[1752777680771,29.49,174.6,174.58,12.65745924]
[1752777681067,29.49,174.6,174.57,5.72825213]
[1752777681267,29.49,174.6,174.57,6.40825213]
[1752777682078,36.40958803,174.6,174.55,6.92958803]
[1752777682260,36.40958803,174.6,174.56,0.68]
[1752777682458,6.91958803,174.59,174.54,0.68]
[1752777682657,6.24958803,174.56,174.52,6.40979682]
[1752777682858,29.46,174.55,174.52,0.68]
[1752777683059,29.46,174.55,174.51,11.97980356]
[1752777683272,6.24958803,174.54,174.51,6.41021553]
[1752777683573,6.24958803,174.54,174.5,5.79055534]
[1752777683754,6.24958803,174.54,174.5,6.47055534]
[1752777684163,35.70958803,174.55,174.5,12.72014337]
[1752777684451,29.46,174.55,174.51,6.92958803]
[1752777684757,29.46,174.55,174.52,0.68]
[1752777685065,29.46,174.55,174.53,6.92958803]
[1752777685272,29.46,174.55,174.54,0.68]
[1752777686374,0.03,174.54,174.52,12.65954543]
[1752777686563,0.03,174.54,174.53,0.68]
[1752777686873,0.03,174.54,174.53,6.40967398]
[1752777687172,0.03,174.54,174.53,12.65926201]
[1752777690476,0.03,174.54,174.53,6.40967398]
[1752777690780,29.46,174.57,174.54,16.78468397]
[1752777690959,0.03,174.6,174.56,6.24958803]
[1752777691159,29.49,174.6,174.59,6.24958803]
[1752777691358,29.49,174.6,174.59,0.68]
[1752777691576,29.49,174.6,174.59,6.92958803]
[1752777691969,29.49,174.6,174.59,6.24958803]
[1752777692277,29.49,174.6,174.59,0.68]
[1752777692456,29.49,174.6,174.59,6.92958803]
[1752777693186,29.49,174.6,174.59,12.65729293]
[1752777694063,29.49,174.6,174.59,6.24958803]
[1752777694370,29.49,174.6,174.58,5.72792072]
[1752777694571,29.49,174.6,174.57,12.65789277]
[1752777694773,30.16,174.6,174.57,6.24958803]
[1752777694972,30.16,174.6,174.57,11.97792123]
[1752777695204,29.49,174.6,174.57,11.97792123]
[1752777695588,29.49,174.6,174.57,12.65792123]
[1752777696174,29.49,174.6,174.57,6.4083332]
[1752777696384,29.49,174.6,174.57,12.65792123]
[1752777696576,29.49,174.6,174.58,6.92958803]
[1752777696880,29.49,174.6,174.59,0.68]
[1752777697082,29.49,174.6,174.59,6.24958803]
[1752777697303,29.49,174.6,174.58,6.24958803]
[1752777697790,30.16,174.6,174.58,6.24958803]
[1752777698168,29.49,174.6,174.57,11.97792123]
[1752777698368,29.49,174.6,174.58,6.24958803]
[1752777698578,29.49,174.6,174.58,6.92958803]
[1752777698883,29.49,174.6,174.59,6.24958803]
[1752777699069,29.49,174.6,174.58,6.24958803]
[1752777699270,29.49,174.6,174.53,0.68]
[1752777699271,6.91958803,174.59,174.53,0.68]
[1752777699475,6.24958803,174.57,174.52,6.24958803]
[1752777699683,29.62,174.56,174.52,6.24958803]
[1752777699890,30.29,174.56,174.52,6.24958803]
[1752777700791,0.67,174.55,174.51,6.41033064]
[1752777700986,0.67,174.55,174.5,12.04019601]
[1752777701173,0.67,174.54,174.5,12.72019601]
[1752777701373,29.6,174.53,174.5,0.06]
[1752777702087,36.51958803,174.53,174.5,0.06]
[1752777702268,30.27,174.53,174.5,0.06]
[1752777702470,35.84958803,174.53,174.5,0.06]
[1752777702973,29.6,174.53,174.5,0.06]
[1752777703165,29.6,174.53,174.5,0.74]
[1752777704174,29.6,174.52,174.51,6.92958803]
[1752777705084,29.6,174.52,174.5,5.79037214]
[1752777705265,29.6,174.52,174.5,6.30958803]
[1752777705873,29.6,174.52,174.5,0.06]
[1752777706079,36.51958803,174.52,174.5,0.06]
[1752777706276,0.67,174.51,174.5,0.06]
[1752777706786,30.27,174.52,174.5,0.06]
[1752777707390,29.6,174.52,174.5,0.06]
[1752777708508,26.0,174.55,174.51,0.71]
[1752777708680,29.58,174.54,174.51,0.71]
[1752777710072,29.58,174.54,174.51,6.44029346]
[1752777710273,29.58,174.54,174.52,0.71]
[1752777710473,29.58,174.54,174.51,0.71]
[1752777710685,29.58,174.54,174.51,6.44030085]
[1752777710993,29.58,174.54,174.51,11.97988888]
[1752777711195,29.58,174.54,174.52,0.71]
[1752777711494,29.58,174.54,174.53,0.71]
[1752777712979,29.58,174.54,174.53,6.95958803]
[1752777713294,29.58,174.54,174.53,12.68926201]
[1752777713891,29.56,174.54,174.53,12.68926201]
[1752777714598,29.56,174.57,174.53,27.01344696]
[1752777714803,29.56,174.57,174.56,6.24958803]
[1752777715300,29.56,174.57,174.56,6.95958803]
[1752777715599,29.56,174.57,174.56,12.6882773]
[1752777720298,29.56,174.57,174.56,11.9782773]
[1752777720505,29.56,174.57,174.55,11.9785651]
[1752777721799,30.24,174.57,174.55,11.9785651]
[1752777721999,0.68,174.56,174.52,5.73000229]
[1752777722201,0.68,174.56,174.52,11.97959032]
[1752777722505,0.68,174.55,174.52,5.73000229]
[1752777722702,29.52,174.54,174.52,5.73000229]
[1752777723096,29.52,174.54,174.5,0.77]
[1752777723405,6.92958803,174.53,174.5,0.06]
[1752777723902,0.68,174.52,174.5,0.06]
[1752777724099,29.56,174.51,174.5,0.06]
[1752777726516,30.24,174.51,174.5,0.06]
[1752777726692,29.56,174.51,174.5,0.06]
[1752777728500,29.56,174.51,174.5,6.50065902]
[1752777728708,6.4383,174.56,174.5,12.75024705]
[1752777728895,29.54,174.55,174.52,6.24958803]
[1752777729095,29.54,174.55,174.52,6.95958803]
[1752777729507,29.56,174.54,174.53,6.24958803]
[1752777729912,29.56,174.54,174.53,6.95958803]
[1752777730100,29.56,174.54,174.53,12.68926201]
[1752777730506,29.56,174.54,174.53,11.97926201]
[1752777730893,29.56,174.54,174.53,5.72967398]
[1752777731093,30.24,174.54,174.52,5.72988925]
[1752777731312,30.24,174.54,174.51,5.73025496]
[1752777731895,30.24,174.54,174.5,6.30958803]
[1752777731896,29.56,174.54,174.5,0.06]
[1752777732113,0.68,174.53,174.5,12.0401719]
[1752777732317,0.68,174.53,174.5,5.79058387]
[1752777732491,29.56,174.54,174.5,5.79058387]
[1752777732815,29.56,174.54,174.51,6.24958803]
[1752777733006,0.68,174.53,174.5,0.06]
[1752777733309,0.68,174.52,174.5,5.79059669]
[1752777733516,29.54,174.51,174.5,5.79059669]
[1752777734520,29.54,174.51,174.5,0.06]
[1752777735718,29.54,174.51,174.5,7.01958803]
[1752777736102,6.92958803,174.56,174.51,5.73033064]
[1752777736302,29.56,174.55,174.51,12.68991867]
[1752777736618,29.56,174.55,174.51,11.97991867]
[1752777736812,29.56,174.55,174.52,0.71]
[1752777737010,29.56,174.55,174.51,5.73033064]
[1752777737011,35.80958803,174.55,174.51,5.73033064]
[1752777737211,29.56,174.55,174.51,11.97991867]
[1752777737408,29.56,174.55,174.51,12.68991867]
[1752777737725,0.68,174.54,174.5,12.04015775]
[1752777738528,0.68,174.54,174.5,5.79056972]
[1752777739220,0.68,174.54,174.5,12.04015775]
[1752777739626,29.54,174.53,174.51,6.24958803]
[1752777740100,29.54,174.53,174.51,0.71]